fUST/lending_fUST_20250928
["ID","MTS","AMOUNT","RATE_DAILY","PERIOD"]
[388306138,1759068659357,-868.96,0.00036164,9]
[388306139,1759068659367,-480.0,0.00036164,9]
[388306140,1759068659376,-827.3,0.00036164,9]
[388306141,1759068659385,-1065.4,0.00036164,9]
[388306142,1759068659394,-480.0,0.00036164,9]
[388306143,1759068659402,-2146.47,0.00036164,9]
[388306144,1759068659411,-480.0,0.00036164,9]
[388306145,1759068659420,-855.97,0.00036164,9]
[388306146,1759068659429,-480.0,0.00036164,9]
[388306147,1759068659438,-480.0,0.00036164,9]
[388306148,1759068659447,-480.0,0.00036164,9]
[388306149,1759068659457,-480.0,0.00036164,9]
[388306150,1759068659467,-1005.89,0.00036164,9]
[388306151,1759068659476,-597.94,0.00036164,9]
[388306152,1759068659486,-480.0,0.00036164,9]
[388306153,1759068659495,-480.0,0.00036164,9]
[388306154,1759068659504,-480.0,0.00036164,9]
[388306155,1759068659513,-492.57,0.00036164,9]
[388306156,1759068659522,-535.56370102,0.00036164,9]
[388306157,1759068659530,-1151.05,0.00036164,9]
[388306158,1759068659539,-480.0,0.00036164,9]
[388306159,1759068659548,-480.0,0.00036164,9]
[388306160,1759068659557,-1081.31,0.00036164,9]
[388306161,1759068659566,-480.0,0.00036164,9]
[388306162,1759068659575,-480.0,0.00036164,9]
[388306163,1759068659585,-480.0,0.00036164,9]
[388306164,1759068659597,-480.0,0.00036164,9]
[388306165,1759068659607,-480.0,0.00036164,9]
[388306166,1759068659617,-480.0,0.00036164,9]
[388306167,1759068659626,-1231.25,0.00036164,9]
[388306168,1759068659635,-480.0,0.00036164,9]
[388306169,1759068659643,-480.0,0.00036164,7]
[388306170,1759068659652,-480.0,0.00036164,9]
[388306171,1759068659661,-644.83,0.00036164,9]
[388306172,1759068659670,-925.44,0.00036164,9]
[388306173,1759068659680,-480.0,0.00036164,9]
[388306174,1759068659689,-480.0,0.00036164,9]
[388306175,1759068659699,-480.0,0.00036164,9]
[388306176,1759068659708,-480.0,0.00036164,9]
[388306177,1759068659716,-1159.23,0.00036164,9]
[388306178,1759068659726,-4831.56,0.00036164,9]
[388306179,1759068659735,-480.0,0.00036164,9]
[388306180,1759068659744,-480.0,0.00036164,9]
[388306181,1759068659754,-500.0,0.00036164,9]
[388306182,1759068659763,-480.0,0.00036164,9]
[388306183,1759068659773,-535.63,0.00036164,9]
[388306184,1759068659781,-1182.78,0.00036164,9]
[388306185,1759068659791,-480.0,0.00036164,9]
[388306186,1759068659800,-480.0,0.00036164,9]
[388306187,1759068659809,-480.0,0.00036164,9]
[388306188,1759068659818,-480.0,0.00036164,9]
[388306189,1759068659827,-480.0,0.00036164,9]
[388306190,1759068659835,-524.55,0.00036164,9]
[388306191,1759068659845,-585.91,0.00036164,9]
[388306192,1759068659854,-641.51,0.00036164,9]
[388306193,1759068659863,-480.0,0.00036164,9]
[388306194,1759068659872,-480.0,0.00036164,9]
[388306195,1759068659880,-480.0,0.00036164,9]
[388306196,1759068659889,-240.4,0.00036164,9]
[388306197,1759068659899,-1101.93,0.00036164,9]
[388306198,1759068659907,-480.0,0.00036164,9]
[388306199,1759068659916,-897.92,0.00036164,9]
[388306200,1759068659925,-480.0,0.00036164,9]
[388306201,1759068659934,-480.0,0.00036164,9]
[388306202,1759068659943,-480.0,0.00036164,9]
[388306203,1759068659953,-305.80351244,0.00036164,9]
[388306204,1759068659962,-890.13,0.00036164,9]
[388306205,1759068659971,-3211.64,0.00036164,9]
[388306206,1759068659980,-480.0,0.00036164,9]
[388306207,1759068659989,-881.9,0.00036164,9]
[388306208,1759068659998,-480.0,0.00036164,9]
[388306209,1759068660007,-480.0,0.00036164,9]
[388306210,1759068660016,-752.47,0.00036164,9]
[388306211,1759068660025,-480.0,0.00036164,9]
[388306212,1759068660034,-2089.22,0.00036164,9]
[388306213,1759068660044,-908.25,0.00036164,9]
[388306214,1759068660053,-480.0,0.00036164,9]
[388306215,1759068660063,-972.07,0.00036164,9]
[388306216,1759068660072,-18376.28,0.00036164,9]
[388306217,1759068660081,-480.0,0.00036164,9]
[388306218,1759068660091,-480.0,0.00036164,9]
[388306219,1759068660101,-480.0,0.00036164,9]
[388306220,1759068660110,-504.46,0.00036164,9]
[388306221,1759068660119,-895.65,0.00036164,9]
[388306222,1759068660128,-1810.76,0.00036164,9]
[388306223,1759068660138,-480.0,0.00036164,9]
[388306224,1759068660147,-480.0,0.00036164,9]
[388306225,1759068660156,-615.32,0.00036164,9]
[388306226,1759068660166,-913.52,0.00036164,9]
[388306227,1759068660175,-480.0,0.00036164,9]
[388306228,1759068660185,-480.0,0.00036164,9]
[388306229,1759068660195,-1069.24,0.00036164,9]
[388306230,1759068660205,-480.0,0.00036164,9]
[388306231,1759068660214,-575.56,0.00036164,9]
[388306232,1759068660224,-480.0,0.00036164,9]
[388306233,1759068660234,-1178.53,0.00036164,9]
[388306234,1759068660243,-1129.25,0.00036164,9]
[388306235,1759068660252,-480.0,0.00036164,9]
[388306236,1759068660261,-480.0,0.00036164,9]
[388306237,1759068660270,-1632.84,0.00036164,9]
[388306238,1759068660279,-545.66,0.00036164,9]
[388306239,1759068660288,-480.0,0.00036164,9]
[388306240,1759068660298,-480.0,0.00036164,9]
[388306241,1759068660307,-480.0,0.00036164,9]
[388306242,1759068660317,-480.0,0.00036164,9]
[388306243,1759068660326,-480.0,0.00036164,9]
[388306244,1759068660335,-416.24974271,0.00036164,9]
[388306245,1759068660345,-1000.65,0.00036164,9]
[388306246,1759068660354,-480.0,0.00036164,9]
[388306247,1759068660363,-500.0,0.00036164,9]
[388306248,1759068660509,-810.47,0.00036164,9]
[388306249,1759068660519,-480.0,0.00036164,9]
[388306250,1759068660528,-480.0,0.00036164,9]
[388306251,1759068660537,-633.61,0.00036164,9]
[388306252,1759068660547,-559.58,0.00036164,9]
[388306253,1759068660556,-480.0,0.00036164,9]
[388306254,1759068660566,-2221.01,0.00036164,9]
[388306255,1759068660575,-1736.84,0.00036164,9]
[388306256,1759068660584,-902.59,0.00036164,9]
[388306257,1759068660594,-480.0,0.00036164,9]
[388306258,1759068660606,-4334.24,0.00036164,9]
[388306259,1759068660615,-480.0,0.00036164,9]
[388306260,1759068660623,-480.0,0.00036164,9]
[388306261,1759068660632,-950.0,0.00036164,9]
[388306262,1759068660641,-480.0,0.00036164,9]
[388306263,1759068660651,-480.0,0.00036164,9]
[388306264,1759068660660,-288.81939275,0.00036164,9]
[388306265,1759068660669,-900.91,0.00036164,9]
[388306266,1759068660678,-480.0,0.00036164,9]
[388306267,1759068660687,-480.0,0.00036164,9]
[388306268,1759068660695,-480.0,0.00036164,9]
[388306269,1759068660704,-280.67490713,0.00036164,9]
[388306270,1759068660713,-480.0,0.00036164,9]
[388306271,1759068660722,-592.75,0.00036164,9]
[388306272,1759068660732,-480.0,0.00036164,9]
[388306273,1759068660741,-908.6,0.00036164,9]
[388306274,1759068660751,-578.44,0.00036164,9]
[388306275,1759068660760,-480.0,0.00036164,9]
[388306276,1759068660769,-480.0,0.00036164,9]
[388306277,1759068660779,-480.0,0.00036164,9]
[388306278,1759068660788,-480.0,0.00036164,9]
[388306279,1759068660797,-1015.55,0.00036164,9]
[388306280,1759068660806,-480.0,0.00036164,9]
[388306281,1759068660816,-480.0,0.00036164,9]
[388306282,1759068660825,-480.0,0.00036164,9]
[388306283,1759068660835,-617.62,0.00036164,9]
[388306284,1759068660844,-781.98,0.00036164,9]
[388306285,1759068660853,-544.27,0.00036164,9]
[388306286,1759068660862,-1425.07,0.00036164,9]
[388306287,1759068660871,-480.0,0.00036164,9]
[388306288,1759068660881,-480.0,0.00036164,9]
[388306289,1759068660890,-2525.32,0.00036164,9]
[388306290,1759068660900,-480.0,0.00036164,9]
[388306291,1759068660909,-3612.7,0.00036164,9]
[388306292,1759068660918,-480.0,0.00036164,9]
[388306293,1759068660928,-1795.28,0.00036164,9]
[388306294,1759068660936,-591.42,0.00036164,9]
[388306295,1759068660946,-2166.38,0.00036164,9]
[388306296,1759068660955,-880.11,0.00036164,9]
[388306297,1759068660963,-593.05,0.00036164,9]
[388306298,1759068660973,-1360.5,0.00036164,9]
[388306299,1759068660982,-781.78,0.00036164,9]
[388306300,1759068660991,-480.0,0.00036164,9]
[388306301,1759068661000,-480.0,0.00036164,9]
[388306302,1759068661009,-480.0,0.00036164,9]
[388306303,1759068661019,-480.0,0.00036164,9]
[388306304,1759068661027,-480.0,0.00036164,9]
[388306305,1759068661037,-480.0,0.00036164,9]
[388306306,1759068661046,-994.78,0.00036164,9]
[388306307,1759068661055,-480.0,0.00036164,9]
[388306308,1759068661064,-1064.57,0.00036164,9]
[388306309,1759068661073,-514.13,0.00036164,9]
[388306310,1759068661083,-776.16,0.00036164,9]
[388306311,1759068661092,-480.0,0.00036164,9]
[388306312,1759068661102,-767.26,0.00036164,9]
[388306313,1759068661111,-480.0,0.00036164,9]
[388306314,1759068661121,-2844.2,0.00036164,9]
[388306315,1759068661131,-932.54,0.00036164,9]
[388306316,1759068661140,-1149.59,0.00036164,9]
[388306317,1759068661149,-847.08,0.00036164,9]
[388306318,1759068661158,-1150.88,0.00036164,9]
[388306319,1759068661167,-480.0,0.00036164,9]
[388306320,1759068661177,-480.0,0.00036164,9]
[388306321,1759068661186,-480.0,0.00036164,9]
[388306322,1759068661195,-4550.13,0.00036164,9]
[388306323,1759068661204,-822.61,0.00036164,9]
[388306324,1759068661213,-480.0,0.00036164,9]
[388306325,1759068661222,-1355.51,0.00036164,9]
[388306326,1759068661231,-480.0,0.00036164,9]
[388306327,1759068661240,-480.0,0.00036164,9]
[388306328,1759068661250,-748.06,0.00036164,9]
[388306329,1759068661259,-480.0,0.00036164,9]
[388306330,1759068661268,-480.0,0.00036164,9]
[388306331,1759068661277,-480.0,0.00036164,9]
[388306332,1759068661286,-1247.62,0.00036164,9]
[388306333,1759068661296,-480.0,0.00036164,7]
[388306334,1759068661305,-1295.05,0.00036164,9]
[388306335,1759068661314,-524.7,0.00036164,9]
[388306336,1759068661323,-646.9,0.00036164,9]
[388306337,1759068661333,-6149.46,0.00036164,9]
[388306338,1759068661342,-649.02,0.00036164,9]
[388306339,1759068661351,-480.0,0.00036164,9]
[388306340,1759068661360,-674.87,0.00036164,9]
[388306341,1759068661368,-1066.65,0.00036164,9]
[388306342,1759068661377,-3244.73,0.00036164,9]
[388306343,1759068661387,-688.02,0.00036164,9]
[388306344,1759068661398,-1372.82,0.00036164,9]
[388306345,1759068661407,-1154.48,0.00036164,9]
[388306346,1759068661417,-480.0,0.00036164,9]
[388306347,1759068661426,-2424.55,0.00036164,9]
[388306348,1759068661435,-1039.76,0.00036164,9]
[388306349,1759068661444,-480.0,0.00036164,9]
[388306350,1759068661453,-2399.65,0.00036164,9]
[388306351,1759068661463,-480.0,0.00036164,9]
[388306352,1759068661472,-1083.19,0.00036164,9]
[388306353,1759068661481,-480.0,0.00036164,9]
[388306354,1759068661491,-1246.35,0.00036164,9]
[388306355,1759068661500,-2936.2,0.00036164,9]
[388306356,1759068661510,-1554.9,0.00036164,9]
[388306357,1759068661519,-829.45,0.00036164,9]
[388306358,1759068661528,-501.96,0.00036164,9]
[388306359,1759068661538,-4572.54,0.00036164,9]
[388306360,1759068661547,-480.0,0.00036164,9]
[388306361,1759068661556,-773.93,0.00036164,9]
[388306362,1759068661566,-480.0,0.00036164,9]
[388306363,1759068661575,-480.0,0.00036164,9]
[388306364,1759068661584,-1335.65,0.00036164,9]
[388306365,1759068661595,-283.14143176,0.00036164,9]
[388306366,1759068661610,-480.0,0.00036164,9]
[388306367,1759068661619,-480.0,0.00036164,9]
[388306368,1759068661628,-696.72,0.00036164,9]
[388306369,1759068661637,-480.0,0.00036164,9]
[388306370,1759068661649,-9730.87,0.00036164,9]
[388306371,1759068661659,-2754.5,0.00036164,9]
[388306372,1759068661668,-835.68,0.00036164,9]
[388306373,1759068661678,-631.39,0.00036164,9]
[388306374,1759068661689,-480.0,0.00036164,9]
[388306375,1759068661699,-480.0,0.00036164,9]
[388306376,1759068661708,-480.0,0.00036164,9]
[388306377,1759068661716,-480.0,0.00036164,9]
[388306378,1759068661726,-1864.81,0.00036164,9]
[388306379,1759068661735,-1802.9,0.00036164,9]
[388306380,1759068661744,-712.34,0.00036164,9]
[388306381,1759068661754,-480.0,0.00036164,9]
[388306382,1759068661763,-874.19,0.00036164,9]
[388306383,1759068661773,-659.59,0.00036164,9]
[388306384,1759068661781,-993.2,0.00036164,9]
[388306385,1759068661791,-5121.88,0.00036164,9]
[388306386,1759068661800,-480.0,0.00036164,9]
[388306387,1759068661809,-480.0,0.00036164,9]
[388306388,1759068661818,-480.0,0.00036164,9]
[388306389,1759068661828,-1482.23,0.00036164,9]
[388306390,1759068661837,-480.0,0.00036164,9]
[388306391,1759068661846,-480.0,0.00036164,9]
[388306392,1759068661855,-722.48,0.00036164,9]
[388306393,1759068661864,-5174.09,0.00036164,9]
[388306394,1759068661873,-1892.82,0.00036164,9]
[388306395,1759068661882,-1028.73,0.00036164,9]
[388306396,1759068661892,-480.0,0.00036164,9]
[388306397,1759068661901,-480.0,0.00036164,9]
[388306398,1759068661910,-480.0,0.00036164,9]
[388306399,1759068661919,-151.0,0.00036164,30]
[388306400,1759068661928,-480.0,0.00036164,9]
[388306401,1759068661937,-480.0,0.00036164,9]
[388306402,1759068661947,-480.0,0.00036164,9]
[388306403,1759068661957,-670.17,0.00036164,9]
[388306404,1759068661965,-1199.0,0.00036164,9]
[388306405,1759068661975,-958.01,0.00036164,9]
[388306406,1759068661984,-854.57,0.00036164,9]
[388306407,1759068661993,-1000.0,0.00036164,9]
[388306408,1759068662002,-480.0,0.00036164,9]
[388306409,1759068662011,-480.0,0.00036164,9]
[388306410,1759068662020,-487.440217,0.00036164,9]
[388306411,1759068662029,-1226.05,0.00036164,9]
[388306412,1759068662037,-480.0,0.00036164,9]
[388306413,1759068662046,-677.52,0.00036164,9]
[388306414,1759068662055,-1781.81,0.00036164,9]
[388306415,1759068662066,-480.0,0.00036164,9]
[388306416,1759068662075,-480.0,0.00036164,9]
[388306417,1759068662084,-1475.03,0.00036164,9]
[388306418,1759068662093,-1986.35,0.00036164,9]
[388306419,1759068662102,-1024.67,0.00036164,9]
[388306420,1759068662111,-480.0,0.00036164,9]
[388306421,1759068662120,-480.0,0.00036164,9]
[388306422,1759068662130,-151.0,0.00036164,30]
[388306423,1759068662139,-9000.0,0.00036164,30]
[388306424,1759068662148,-480.0,0.00036164,9]
[388306425,1759068662157,-9000.0,0.00036164,30]
[388306426,1759068662167,-158.649477,0.00036164,30]
[388306427,1759068662176,-2224.04,0.00036164,9]
[388306428,1759068662185,-480.0,0.00036164,9]
[388306429,1759068662195,-9000.0,0.00036164,30]
[388306430,1759068662204,-495.41824026,0.00036164,9]
[388306431,1759068662219,-1899.47,0.00036164,9]
[388306432,1759068662228,-4230.19,0.00036164,9]
[388306433,1759068662238,-480.0,0.00036164,9]
[388306434,1759068662247,-9000.0,0.00036164,30]
[388306435,1759068662255,-480.0,0.00036164,9]
[388306436,1759068662264,-480.0,0.00036164,9]
[388306437,1759068662273,-480.0,0.00036164,9]
[388306438,1759068662282,-2625.78,0.00036164,9]
[388306439,1759068662291,-480.0,0.00036164,9]
[388306440,1759068662300,-1701.51,0.00036164,9]
[388306441,1759068662309,-480.0,0.00036164,9]
[388306442,1759068662319,-555.63,0.00036164,9]
[388306443,1759068662328,-4315.32,0.00036164,9]
[388306444,1759068662337,-766.72,0.00036164,9]
[388306445,1759068662346,-513.38,0.00036164,9]
[388306446,1759068662355,-2676.22,0.00036164,9]
[388306447,1759068662363,-3680.23,0.00036164,9]
[388306448,1759068662372,-480.0,0.00036164,9]
[388306449,1759068662382,-480.0,0.00036164,9]
[388306450,1759068662391,-480.0,0.00036164,9]
[388306451,1759068662400,-218.41536547,0.00036164,9]
[388306452,1759068662409,-480.0,0.00036164,9]
[388306453,1759068662418,-1199.17,0.00036164,9]
[388306454,1759068662427,-480.0,0.00036164,9]
[388306455,1759068662436,-1096.04,0.00036164,9]
[388306456,1759068662445,-480.0,0.00036164,9]
[388306457,1759068662454,-669.82,0.00036164,9]
[388306458,1759068662463,-480.0,0.00036164,9]
[388306459,1759068662472,-550.1,0.00036164,9]
[388306460,1759068662481,-480.0,0.00036164,9]
[388306461,1759068662489,-5771.08,0.00036164,9]
[388306462,1759068662498,-480.0,0.00036164,9]
[388306463,1759068662507,-1116.74,0.00036164,9]
[388306464,1759068662516,-1030.32,0.00036164,9]
[388306465,1759068662525,-480.0,0.00036164,9]
[388306466,1759068662534,-719.19,0.00036164,9]
[388306467,1759068662543,-480.0,0.00036164,9]
[388306468,1759068662552,-941.46,0.00036164,9]
[388306469,1759068662561,-902.24,0.00036164,9]
[388306470,1759068662570,-9162.48,0.00036164,9]
[388306471,1759068662579,-480.0,0.00036164,9]
[388306472,1759068662588,-480.0,0.00036164,9]
[388306473,1759068662602,-3202.49,0.00036164,9]
[388306474,1759068662611,-480.0,0.00036164,9]
[388306475,1759068662620,-480.0,0.00036164,9]
[388306476,1759068662629,-480.0,0.00036164,9]
[388306477,1759068662639,-480.0,0.00036164,9]
[388306478,1759068662649,-480.0,0.00036164,9]
[388306479,1759068662658,-480.0,0.00036164,9]
[388306480,1759068662667,-480.0,0.00036164,9]
[388306481,1759068662678,-480.0,0.00036164,9]
[388306482,1759068662688,-4051.83,0.00036164,9]
[388306483,1759068662697,-1094.06,0.00036164,9]
[388306484,1759068662706,-480.0,0.00036164,9]
[388306485,1759068662715,-1909.08,0.00036164,9]
[388306486,1759068662724,-800.84,0.00036164,9]
[388306487,1759068662733,-480.0,0.00036164,9]
[388306488,1759068662742,-3848.32,0.00036164,9]
[388306489,1759068662752,-480.0,0.00036164,9]
[388306490,1759068662763,-613.52,0.00036164,9]
[388306491,1759068662772,-1482.22,0.00036164,9]
[388306492,1759068662781,-1451.08,0.00036164,9]
[388306493,1759068662790,-480.0,0.00036164,9]
[388306494,1759068662799,-1070.79,0.00036164,9]
[388306495,1759068662808,-996.79,0.00036164,9]
[388306496,1759068662818,-480.0,0.00036164,9]
[388306497,1759068662828,-480.0,0.00036164,9]
[388306498,1759068662837,-480.0,0.00036164,9]
[388306499,1759068662847,-1099.87,0.00036164,9]
[388306500,1759068662856,-480.0,0.00036164,9]
[388306501,1759068662866,-9570.51,0.00036164,9]
[388306502,1759068662876,-4305.51,0.00036164,9]
[388306503,1759068662886,-480.0,0.00036164,9]
[388306504,1759068662895,-480.0,0.00036164,9]
[388306505,1759068662904,-480.0,0.00036164,9]
[388306506,1759068662914,-480.0,0.00036164,9]
[388306507,1759068662923,-484.91402383,0.00036164,9]
[388306508,1759068662933,-480.0,0.00036164,9]
[388306509,1759068663070,-2509.13,0.00036164,9]
[388306510,1759068663079,-927.64,0.00036164,9]
[388306511,1759068663088,-480.0,0.00036164,9]
[388306512,1759068663098,-2815.64,0.00036164,9]
[388306513,1759068663108,-480.0,0.00036164,9]
[388306514,1759068663118,-480.0,0.00036164,9]
[388306515,1759068663127,-524.79,0.00036164,9]
[388306516,1759068663137,-1142.03,0.00036164,9]
[388306517,1759068663146,-552.37,0.00036164,9]
[388306518,1759068663156,-480.0,0.00036164,9]
[388306519,1759068663166,-1156.14,0.00036164,9]
[388306520,1759068663175,-1882.54,0.00036164,9]
[388306521,1759068663184,-868.8,0.00036164,9]
[388306522,1759068663193,-1528.64,0.00036164,9]
[388306523,1759068663202,-2188.71,0.00036164,9]
[388306524,1759068663212,-2087.73,0.00036164,9]
[388306525,1759068663222,-480.0,0.00036164,9]
[388306526,1759068663232,-480.0,0.00036164,9]
[388306527,1759068663241,-480.0,0.00036164,9]
[388306528,1759068663250,-1284.61,0.00036164,9]
[388306529,1759068663259,-665.69,0.00036164,9]
[388306530,1759068663269,-989.93,0.00036164,9]
[388306531,1759068663278,-588.18,0.00036164,9]
[388306532,1759068663287,-981.44,0.00036164,9]
[388306533,1759068663297,-729.11,0.00036164,9]
[388306534,1759068663307,-480.0,0.00036164,9]
[388306535,1759068663319,-513.09821905,0.00036164,9]
[388306536,1759068663328,-480.0,0.00036164,9]
[388306537,1759068663338,-704.86,0.00036164,9]
[388306538,1759068663348,-480.0,0.00036164,9]
[388306539,1759068663357,-482.7642323,0.00036164,9]
[388306540,1759068663367,-10297.24,0.00036164,9]
[388306541,1759068663376,-519.61,0.00036164,9]
[388306542,1759068663386,-480.0,0.00036164,9]
[388306543,1759068663395,-867.04,0.00036164,9]
[388306544,1759068663404,-596.52,0.00036164,9]
[388306545,1759068663414,-500.0,0.00036173,5]
[388306546,1759068663423,-254.0,0.000362,7]
[388306547,1759068663432,-203.1484647,0.0003621,2]
[388306548,1759068663442,-1000.0,0.00036221,5]
[388306549,1759068663451,-1004.71892152,0.00036221,2]
[388306550,1759068663461,-1000.0,0.00036221,5]
[388306551,1759068663470,-1084.51147441,0.00036221,5]
[388306552,1759068663480,-1000.0,0.00036221,5]
[388306553,1759068663491,-1000.0,0.00036221,5]
[388306554,1759068663501,-1000.0,0.00036221,5]
[388306555,1759068663510,-1000.0,0.00036221,5]
[388306556,1759068663519,-1000.0,0.00036221,5]
[388306557,1759068663529,-1000.0,0.00036221,5]
[388306558,1759068663538,-1000.0,0.00036221,5]
[388306559,1759068663548,-504.16904595,0.00036221,5]
[388306560,1759068663557,-250.0,0.00036221,5]
[388306561,1759068663568,-1000.0,0.00036221,5]
[388306562,1759068663577,-264.23913072,0.0003624,2]
[388306563,1759068663586,-168.0,0.00036313,2]
[388306564,1759068663599,-160.0,0.00036399,3]
[388306565,1759068663609,-508.12224411,0.00036421,2]
[388306566,1759068663618,-1000.0,0.00036421,5]
[388306567,1759068663628,-1000.0,0.00036421,5]
[388306568,1759068663638,-1000.0,0.00036421,5]
[388306569,1759068663647,-1000.0,0.00036421,5]
[388306570,1759068663656,-1000.0,0.00036421,5]
[388306571,1759068663666,-1000.0,0.00036421,5]
[388306572,1759068663676,-1000.0,0.00036421,5]
[388306573,1759068663686,-1000.0,0.00036421,5]
[388306574,1759068663696,-1000.0,0.00036421,5]
[388306575,1759068663705,-1000.0,0.00036421,5]
[388306576,1759068663714,-1000.0,0.00036421,5]
[388306577,1759068663723,-1000.0,0.00036421,5]
[388306578,1759068663733,-1000.0,0.00036421,5]
[388306579,1759068663742,-520.0,0.00036437,120]
[388306580,1759068663752,-532.24,0.00036438,9]
[388306581,1759068663761,-480.0,0.00036438,9]
[388306582,1759068663770,-480.0,0.00036438,9]
[388306583,1759068663780,-480.0,0.00036438,9]
[388306584,1759068663789,-494.45,0.00036438,9]
[388306585,1759068663798,-1111.76,0.00036438,9]
[388306586,1759068663807,-480.0,0.00036438,9]
[388306587,1759068663817,-480.0,0.00036438,9]
[388306588,1759068663826,-480.0,0.00036438,9]
[388306589,1759068663835,-523.13073769,0.00036438,9]
[388306590,1759068663844,-480.0,0.00036438,9]
[388306591,1759068663853,-480.0,0.00036438,9]
[388306592,1759068663863,-1058.1,0.00036438,9]
[388306593,1759068663872,-480.0,0.00036438,9]
[388306594,1759068663882,-480.0,0.00036438,9]
[388306595,1759068663893,-480.0,0.00036438,9]
[388306596,1759068663903,-480.0,0.00036438,9]
[388306597,1759068663914,-480.0,0.00036438,9]
[388306598,1759068663932,-480.0,0.00036438,9]
[388306599,1759068663948,-697.47,0.00036438,9]
[388306600,1759068663958,-480.0,0.00036438,9]
[388306601,1759068663968,-480.0,0.00036438,9]
[388306602,1759068663977,-480.0,0.00036438,9]
[388306603,1759068663986,-480.0,0.00036438,9]
[388306604,1759068663996,-741.99,0.00036438,9]
[388306605,1759068664006,-480.0,0.00036438,9]
[388306606,1759068664016,-480.0,0.00036438,9]
[388306607,1759068664025,-858.36,0.00036438,9]
[388306608,1759068664034,-822.6,0.00036438,9]
[388306609,1759068664043,-480.0,0.00036438,9]
[388306610,1759068664052,-484.05087239,0.00036438,9]
[388306611,1759068664061,-1051.22,0.00036438,9]
[388306612,1759068664072,-1485.76,0.00036438,9]
[388306613,1759068664081,-480.0,0.00036438,9]
[388306614,1759068664090,-480.0,0.00036438,9]
[388306615,1759068664099,-480.0,0.00036438,9]
[388306616,1759068664108,-480.0,0.00036438,9]
[388306617,1759068664119,-895.12,0.00036438,9]
[388306618,1759068664128,-480.0,0.00036438,9]
[388306619,1759068664137,-935.48,0.00036438,9]
[388306620,1759068664147,-231.42498517,0.00036438,9]
[388306621,1759068664156,-480.0,0.00036438,9]
[388306622,1759068664165,-679.79,0.00036438,9]
[388306623,1759068664174,-480.0,0.00036438,9]
[388306624,1759068664184,-480.0,0.00036438,9]
[388306625,1759068664193,-480.0,0.00036438,9]
[388306626,1759068664203,-480.0,0.00036438,9]
[388306627,1759068664212,-555.42,0.00036438,9]
[388306628,1759068664222,-1095.61,0.00036438,9]
[388306629,1759068664231,-894.02,0.00036438,9]
[388306630,1759068664239,-480.0,0.00036438,9]
[388306631,1759068664248,-807.63,0.00036438,9]
[388306632,1759068664257,-480.0,0.00036438,9]
[388306633,1759068664267,-1264.54,0.00036438,9]
[388306634,1759068664276,-480.0,0.00036438,9]
[388306635,1759068664286,-480.0,0.00036438,9]
[388306636,1759068664295,-628.23,0.00036438,9]
[388306637,1759068664305,-1369.84,0.00036438,9]